fUSD/lending_fUSD_20240902
["ID","MTS","AMOUNT","RATE_DAILY","PERIOD"]
[336994227,1725295848192,-500.0,0.00019178,2]
[336994228,1725295848202,-463.3,0.00019178,2]
[336994229,1725295848212,-500.0,0.00019178,2]
[336994230,1725295848221,-500.0,0.00019178,2]
[336994231,1725295848230,-500.0,0.00019178,2]
[336994232,1725295848239,-500.0,0.00019178,2]
[336994233,1725295848249,-500.0,0.00019178,2]
[336994234,1725295848258,-165.03,0.00019178,2]
[336994235,1725295848267,-500.0,0.00019178,2]
[336994236,1725295848276,-500.0,0.00019178,2]
[336994237,1725295848286,-500.0,0.00019178,2]
[336994238,1725295848296,-554.86,0.00019178,2]
[336994239,1725295848305,-500.0,0.00019178,2]
[336994240,1725295848314,-500.0,0.00019178,2]
[336994241,1725295848323,-500.0,0.00019178,2]
[336994242,1725295848332,-500.0,0.00019178,2]
[336994243,1725295848341,-500.0,0.00019178,2]
[336994244,1725295848351,-500.0,0.00019178,2]
[336994245,1725295848361,-500.0,0.00019178,2]
[336994246,1725295848370,-500.0,0.00019178,2]
[336994247,1725295848378,-443.26,0.00019178,2]
[336994248,1725295848387,-500.0,0.00019178,2]
[336994249,1725295848396,-500.0,0.00019178,2]
[336994250,1725295848406,-500.0,0.00019178,2]
[336994251,1725295848415,-500.0,0.00019178,2]
[336994252,1725295848425,-500.0,0.00019178,2]
[336994253,1725295848434,-500.0,0.00019178,2]
[336994254,1725295848443,-500.0,0.00019178,2]
[336994255,1725295848453,-500.0,0.00019178,2]
[336994256,1725295848461,-500.0,0.00019178,2]
[336994257,1725295848470,-500.0,0.00019178,2]
[336994258,1725295848479,-500.0,0.00019178,2]
[336994259,1725295848488,-500.0,0.00019178,2]
[336994260,1725295848498,-501.36864047,0.00019178,2]
[336994261,1725295848507,-500.0,0.00019178,2]
[336994262,1725295848516,-500.0,0.00019178,2]
[336994263,1725295848525,-500.0,0.00019178,2]
[336994264,1725295848535,-500.0,0.00019178,2]
[336994265,1725295848544,-500.0,0.00019178,2]
[336994266,1725295848557,-500.0,0.00019178,2]
[336994267,1725295848567,-491.88,0.00019178,2]
[336994268,1725295848576,-577.23,0.00019178,2]
[336994269,1725295848586,-500.0,0.00019178,2]
[336994270,1725295848596,-500.0,0.00019178,2]
[336994271,1725295848606,-500.0,0.00019178,2]
[336994272,1725295848615,-500.0,0.00019178,2]
[336994273,1725295848625,-500.0,0.00019178,2]
[336994274,1725295848636,-500.0,0.00019178,2]
[336994275,1725295848646,-500.0,0.00019178,2]
[336994276,1725295848655,-500.0,0.00019178,2]
[336994277,1725295848665,-157.46,0.00019178,2]
[336994278,1725295848674,-500.0,0.00019178,2]
[336994279,1725295848684,-500.0,0.00019178,2]
[336994280,1725295848693,-500.0,0.00019178,2]
[336994281,1725295848702,-500.0,0.00019178,2]
[336994282,1725295848711,-500.0,0.00019178,2]
[336994283,1725295848720,-500.0,0.00019178,2]
[336994284,1725295848730,-500.0,0.00019178,2]
[336994285,1725295848740,-500.0,0.00019178,2]
[336994286,1725295848749,-150.0,0.00019178,2]
[336994287,1725295848759,-150.0,0.00019178,2]
[336994288,1725295848768,-150.0,0.00019178,2]
[336994289,1725295848777,-150.0,0.00019178,2]
[336994290,1725295848786,-150.0,0.00019178,2]
[336994291,1725295848795,-150.0,0.00019178,2]
[336994292,1725295848805,-500.0,0.00019178,2]
[336994293,1725295848813,-184.65,0.00019178,2]
[336994294,1725295848823,-500.0,0.00019178,2]
[336994295,1725295848832,-500.0,0.00019178,2]
[336994296,1725295848842,-500.0,0.00019178,2]
[336994297,1725295848851,-500.0,0.00019178,2]
[336994298,1725295848860,-500.0,0.00019178,2]
[336994299,1725295848869,-500.0,0.00019178,2]
[336994300,1725295848878,-500.0,0.00019178,2]
[336994301,1725295848887,-500.0,0.00019178,2]
[336994302,1725295848896,-500.0,0.00019178,2]
[336994303,1725295848906,-331.33,0.00019178,2]
[336994304,1725295848927,-500.0,0.00019178,2]
[336994305,1725295848936,-500.0,0.00019178,2]
[336994306,1725295848946,-559.21,0.00019178,2]
[336994307,1725295848956,-615.06,0.00019178,2]
[336994308,1725295848965,-500.0,0.00019178,2]
[336994309,1725295848975,-500.0,0.00019178,2]
[336994310,1725295848984,-597.59,0.00019178,2]
[336994311,1725295848994,-311.95,0.00019178,2]
[336994312,1725295849003,-500.0,0.00019178,2]
[336994313,1725295849013,-500.0,0.00019178,2]
[336994314,1725295849023,-500.0,0.00019178,2]
[336994315,1725295849032,-556.17,0.00019178,2]
[336994316,1725295849042,-500.0,0.00019178,2]
[336994317,1725295849052,-500.0,0.00019178,2]
[336994318,1725295849061,-500.0,0.00019178,2]
[336994319,1725295849071,-309.85264807,0.00019178,2]
[336994320,1725295849081,-500.0,0.00019178,2]
[336994321,1725295849090,-426.44,0.00019178,2]
[336994322,1725295849100,-500.0,0.00019178,2]
[336994323,1725295849109,-500.0,0.00019178,2]
[336994324,1725295849119,-500.0,0.00019178,2]
[336994325,1725295849128,-500.0,0.00019178,2]
[336994326,1725295849138,-500.0,0.00019178,2]
[336994327,1725295849148,-500.0,0.00019178,2]
[336994328,1725295849157,-500.0,0.00019178,2]
[336994329,1725295849168,-500.0,0.00019178,2]
[336994330,1725295849178,-500.0,0.00019178,2]
[336994331,1725295849188,-500.0,0.00019178,2]
[336994332,1725295849197,-500.0,0.00019178,2]
[336994333,1725295849207,-500.0,0.00019178,2]
[336994334,1725295849217,-500.0,0.00019178,2]
[336994335,1725295849226,-500.0,0.00019178,2]
[336994336,1725295849235,-500.0,0.00019178,2]
[336994337,1725295849246,-500.0,0.00019178,2]
[336994338,1725295849255,-285.94,0.00019178,2]
[336994339,1725295849264,-500.0,0.00019178,2]
[336994340,1725295849273,-320.92,0.00019178,2]
[336994341,1725295849282,-500.0,0.00019178,2]
[336994342,1725295849291,-500.0,0.00019178,2]
[336994343,1725295849300,-500.0,0.00019178,2]
[336994344,1725295849309,-406.86166727,0.00019178,2]
[336994345,1725295849318,-500.0,0.00019178,2]
[336994346,1725295849327,-236.17982917,0.00019178,2]
[336994347,1725295849336,-500.0,0.00019178,2]
[336994348,1725295849346,-500.0,0.00019178,2]
[336994349,1725295849355,-500.0,0.00019178,2]
[336994350,1725295849364,-500.0,0.00019178,2]
[336994351,1725295849373,-500.0,0.00019178,2]
[336994352,1725295849382,-500.0,0.00019178,2]
[336994353,1725295849391,-285.02,0.00019178,2]
[336994354,1725295849400,-500.0,0.00019178,2]
[336994355,1725295849410,-500.0,0.00019178,2]
[336994356,1725295849420,-500.0,0.00019178,2]
[336994357,1725295849429,-500.0,0.00019178,2]
[336994358,1725295849438,-500.0,0.00019178,2]
[336994359,1725295849447,-500.0,0.00019178,2]
[336994360,1725295849457,-500.0,0.00019178,2]
[336994361,1725295849466,-500.0,0.00019178,2]
[336994362,1725295849475,-500.0,0.00019178,2]
[336994363,1725295849484,-500.0,0.00019178,2]
[336994364,1725295849493,-181.56,0.00019178,2]
[336994365,1725295849503,-500.0,0.00019178,2]
[336994366,1725295849512,-500.0,0.00019178,2]
[336994367,1725295849522,-500.0,0.00019178,2]
[336994368,1725295849531,-500.0,0.00019178,2]
[336994369,1725295849540,-500.0,0.00019178,2]
[336994370,1725295849552,-500.0,0.00019178,2]
[336994371,1725295849562,-500.0,0.00019178,2]
[336994372,1725295849571,-500.0,0.00019178,2]
[336994373,1725295849580,-500.0,0.00019178,2]
[336994374,1725295849590,-500.0,0.00019178,2]
[336994375,1725295849600,-500.0,0.00019178,2]
[336994376,1725295849609,-500.0,0.00019178,2]
[336994377,1725295849618,-500.0,0.00019178,2]
[336994378,1725295849629,-500.0,0.00019178,2]
[336994379,1725295849638,-600.05323268,0.00019178,2]
[336994380,1725295849648,-500.0,0.00019178,2]
[336994381,1725295849657,-500.0,0.00019178,2]
[336994382,1725295849670,-500.0,0.00019178,2]
[336994383,1725295849679,-500.0,0.00019178,2]
[336994384,1725295849688,-500.0,0.00019178,2]
[336994385,1725295849698,-500.0,0.00019178,2]
[336994386,1725295849707,-500.0,0.00019178,2]
[336994387,1725295849716,-609.43,0.00019178,2]
[336994388,1725295849726,-500.0,0.00019178,2]
[336994389,1725295849735,-500.0,0.00019178,2]
[336994390,1725295849744,-500.0,0.00019178,2]
[336994391,1725295849753,-272.75,0.00019178,2]
[336994392,1725295849762,-500.0,0.00019178,2]
[336994393,1725295849771,-500.0,0.00019178,2]
[336994394,1725295849780,-500.0,0.00019178,2]
[336994395,1725295849789,-500.0,0.00019178,2]
[336994396,1725295849798,-500.0,0.00019178,2]
[336994397,1725295849808,-500.0,0.00019178,2]
[336994398,1725295849817,-500.0,0.00019178,2]
[336994399,1725295849826,-568.98,0.00019178,2]
[336994400,1725295849835,-500.0,0.00019178,2]
[336994401,1725295849844,-500.0,0.00019178,2]
[336994402,1725295849853,-161.46,0.00019178,2]
[336994403,1725295849863,-500.0,0.00019178,2]
[336994404,1725295849872,-500.0,0.00019178,2]
[336994405,1725295849882,-305.14,0.00019178,2]
[336994406,1725295849891,-601.39,0.00019178,2]
[336994407,1725295849900,-594.25,0.00019178,2]
[336994408,1725295849910,-589.11,0.00019178,2]
[336994409,1725295849920,-500.0,0.00019178,2]
[336994410,1725295849930,-228.54,0.00019178,2]
[336994411,1725295849939,-500.0,0.00019178,2]
[336994412,1725295849948,-500.0,0.00019178,2]
[336994413,1725295849958,-500.0,0.00019178,2]
[336994414,1725295849968,-500.0,0.00019178,2]
[336994415,1725295849977,-500.0,0.00019178,2]
[336994416,1725295849986,-500.0,0.00019178,2]
[336994417,1725295849995,-500.0,0.00019178,2]
[336994418,1725295850005,-500.0,0.00019178,2]
[336994419,1725295850014,-500.0,0.00019178,2]
[336994420,1725295850024,-500.0,0.00019178,2]
[336994421,1725295850033,-500.0,0.00019178,2]
[336994422,1725295850043,-500.0,0.00019178,2]
[336994423,1725295850052,-500.0,0.00019178,2]
[336994424,1725295850062,-500.0,0.00019178,2]
[336994425,1725295850072,-500.0,0.00019178,2]
[336994426,1725295850081,-500.0,0.00019178,2]
[336994427,1725295850090,-500.0,0.00019178,2]
[336994428,1725295850099,-223.08,0.00019178,2]
[336994429,1725295850108,-500.0,0.00019178,2]
[336994430,1725295850118,-500.0,0.00019178,2]
[336994431,1725295850127,-500.0,0.00019178,2]
[336994432,1725295850136,-500.0,0.00019178,2]
[336994433,1725295850145,-500.0,0.00019178,2]
[336994434,1725295850154,-500.0,0.00019178,2]
[336994435,1725295850167,-500.0,0.00019178,2]
[336994436,1725295850176,-155.60252847,0.00019178,2]
[336994437,1725295850185,-500.0,0.00019178,2]
[336994438,1725295850194,-500.0,0.00019178,2]
[336994439,1725295850204,-500.0,0.00019178,2]
[336994440,1725295850213,-500.0,0.00019178,2]
[336994441,1725295850222,-500.0,0.00019178,2]
[336994442,1725295850231,-500.0,0.00019178,2]
[336994443,1725295850240,-490.41112272,0.00019178,2]
[336994444,1725295850257,-500.0,0.00019178,2]
[336994445,1725295850269,-500.0,0.00019178,2]
[336994446,1725295850279,-500.0,0.00019178,2]
[336994447,1725295850288,-500.0,0.00019178,2]
[336994448,1725295850299,-500.0,0.00019178,2]
[336994449,1725295850310,-303.83,0.00019178,2]
[336994450,1725295850319,-500.0,0.00019178,2]
[336994451,1725295850329,-500.0,0.00019178,2]
[336994452,1725295850340,-500.0,0.00019178,2]
[336994453,1725295850349,-587.24,0.00019178,2]
[336994454,1725295850359,-500.0,0.00019178,2]
[336994455,1725295850369,-500.0,0.00019178,2]
[336994456,1725295850379,-500.0,0.00019178,2]
[336994457,1725295850389,-500.0,0.00019178,2]
[336994458,1725295850399,-500.0,0.00019178,2]
[336994459,1725295850411,-500.0,0.00019178,2]
[336994460,1725295850421,-500.0,0.00019178,2]
[336994461,1725295850432,-500.0,0.00019178,2]
[336994462,1725295850442,-500.0,0.00019178,2]
[336994463,1725295850451,-152.04,0.00019178,2]
[336994464,1725295850461,-500.0,0.00019178,2]
[336994465,1725295850471,-500.0,0.00019178,2]
[336994466,1725295850480,-500.0,0.00019178,2]
[336994467,1725295850489,-500.0,0.00019178,2]
[336994468,1725295850499,-500.0,0.00019178,2]
[336994469,1725295850509,-500.0,0.00019178,2]
[336994470,1725295850518,-500.0,0.00019178,2]
[336994471,1725295850527,-500.0,0.00019178,2]
[336994472,1725295850537,-515.44,0.00019178,2]
[336994473,1725295850547,-287.73408015,0.00019178,2]
[336994474,1725295850559,-500.0,0.00019178,2]
[336994475,1725295850569,-157.06,0.00019178,2]
[336994476,1725295850579,-500.0,0.00019178,2]
[336994477,1725295850590,-500.0,0.00019178,2]
[336994478,1725295850599,-500.0,0.00019178,2]
[336994479,1725295850609,-500.0,0.00019178,2]
[336994480,1725295850619,-500.0,0.00019178,2]
[336994481,1725295850631,-500.0,0.00019178,2]
[336994482,1725295850641,-500.0,0.00019178,2]
[336994483,1725295850650,-500.0,0.00019178,2]
[336994484,1725295850662,-500.0,0.00019178,2]
[336994485,1725295850671,-599.38,0.00019178,2]
[336994486,1725295850681,-500.0,0.00019178,2]
[336994487,1725295850691,-500.0,0.00019178,2]
[336994488,1725295850700,-500.0,0.00019178,2]
[336994489,1725295850710,-500.0,0.00019178,2]
[336994490,1725295850721,-500.0,0.00019178,2]
[336994491,1725295850730,-500.0,0.00019178,2]
[336994492,1725295850740,-500.0,0.00019178,2]
[336994493,1725295850749,-500.0,0.00019178,2]
[336994494,1725295850759,-500.0,0.00019178,2]
[336994495,1725295850768,-500.0,0.00019178,2]
[336994496,1725295850777,-500.0,0.00019178,2]
[336994497,1725295850787,-500.0,0.00019178,2]
[336994498,1725295850797,-419.36,0.00019178,2]
[336994499,1725295850807,-500.0,0.00019178,2]
[336994500,1725295850816,-500.0,0.00019178,2]
[336994501,1725295850826,-500.0,0.00019178,2]
[336994502,1725295850836,-500.0,0.00019178,2]
[336994503,1725295850847,-500.0,0.00019178,2]
[336994504,1725295850857,-500.0,0.00019178,2]
[336994505,1725295850867,-500.0,0.00019178,2]
[336994506,1725295850876,-500.0,0.00019178,2]
[336994507,1725295850887,-500.0,0.00019178,2]
[336994508,1725295850897,-500.0,0.00019178,2]
[336994509,1725295850907,-500.0,0.00019178,2]
[336994510,1725295850920,-500.0,0.00019178,2]
[336994511,1725295850929,-500.0,0.00019178,2]
[336994512,1725295850939,-500.0,0.00019178,2]
[336994513,1725295850948,-500.0,0.00019178,2]
[336994514,1725295850957,-500.0,0.00019178,2]
[336994515,1725295850967,-423.91796111,0.00019178,2]
[336994516,1725295850976,-500.0,0.00019178,2]
[336994517,1725295850986,-500.0,0.00019178,2]
[336994518,1725295850996,-500.0,0.00019178,2]
[336994519,1725295851006,-500.0,0.00019178,2]
[336994520,1725295851015,-500.0,0.00019178,2]
[336994521,1725295851025,-500.0,0.00019178,2]
[336994522,1725295851034,-500.0,0.00019178,2]
[336994523,1725295851044,-500.0,0.00019178,2]
[336994524,1725295851053,-500.0,0.00019178,2]
[336994525,1725295851063,-500.0,0.00019178,2]
[336994526,1725295851073,-500.0,0.00019178,2]
[336994527,1725295851083,-500.0,0.00019178,2]
[336994528,1725295851093,-500.0,0.00019178,2]
[336994529,1725295851103,-500.0,0.00019178,2]
[336994530,1725295851112,-500.0,0.00019178,2]
[336994531,1725295851122,-500.0,0.00019178,2]
[336994532,1725295851131,-500.0,0.00019178,2]
[336994533,1725295851309,-261.8,0.00019178,2]
[336994534,1725295851319,-500.0,0.00019178,2]
[336994535,1725295851328,-500.0,0.00019178,2]
[336994536,1725295851337,-500.0,0.00019178,2]
[336994537,1725295851346,-500.0,0.00019178,2]
[336994538,1725295851355,-145.96734877,0.00019178,2]
[336994539,1725295851400,-51.47265123,0.00019178,2]
[336994540,1725295851410,-331.44848035,0.00019178,2]
[336994541,1725295851422,-168.55151965,0.00019178,2]
[336994542,1725295851431,-500.0,0.00019178,2]
[336994543,1725295851440,-500.0,0.00019178,2]
[336994544,1725295851449,-334.44848035,0.00019178,2]
[336994545,1725295851460,-165.55151965,0.00019178,2]
[336994546,1725295851470,-500.0,0.00019178,2]
[336994547,1725295851479,-500.0,0.00019178,2]
[336994548,1725295851489,-500.0,0.00019178,2]
[336994549,1725295851498,-500.0,0.00019178,2]
[336994550,1725295851507,-500.0,0.00019178,2]
[336994551,1725295851517,-500.0,0.00019178,2]
[336994552,1725295851526,-500.0,0.00019178,2]
[336994553,1725295851536,-500.0,0.00019178,2]
[336994554,1725295851546,-500.0,0.00019178,2]
[336994555,1725295851558,-500.0,0.00019178,2]
[336994556,1725295851568,-488.2,0.00019178,2]
[336994557,1725295851577,-500.0,0.00019178,2]
[336994558,1725295851587,-53.08384669,0.00019178,2]
[336994559,1725295851601,-446.91615331,0.00019178,2]
[336994560,1725295851610,-102.13243247,0.00019178,2]
[336994561,1725295851682,-253.37440666,0.00019178,2]
[336994562,1725296002394,500.0,0.00027,120]
[336994563,1725296206070,222.97,0.00010959,2]
[336994564,1725296312899,255.76,0.00026888,120]
[336994565,1725296666685,154.08,0.00010959,2]
[336994566,1725296871809,151.33,0.00025919,120]
[336994577,1725297031823,-549.0,0.00014899,2]
[336994579,1725297031833,-170.895,0.000149,2]
[336994581,1725297031843,-2686.13890733,0.000149,2]
[336994584,1725297031854,-637.70410917,0.000149,2]
[336994587,1725297031880,-1075.8957835,0.000149,2]
[336994589,1725297031889,-300.0,0.00015721,2]
[336994590,1725297031899,-616.85,0.00015722,2]
[336994591,1725297031909,-842.0,0.000159,2]
[336994592,1725297031919,-420.0,0.00017193,2]
[336994593,1725297031929,-250.0,0.00017203,2]
[336994594,1725297031939,-151.33,0.00017279,2]
[336994595,1725297031951,-500.0,0.00017313,2]
[336994596,1725297031960,-250.0,0.00017428,2]
[336994597,1725297031970,-500.0,0.00017556,2]
[336994598,1725297031979,-270.29551289,0.00017556,2]
[336994599,1725297031991,-363.76455997,0.00017556,2]
[336994600,1725297032002,-165.93992714,0.00017556,2]
[336994601,1725297032012,-500.0,0.00017556,2]
[336994602,1725297032021,-600.0,0.00017556,2]
[336994603,1725297032032,-101.63788915,0.00017576,2]
[336994604,1725297032043,-2031.63252722,0.00017576,2]
[336994605,1725297032056,-784.34351086,0.00017576,2]
[336994606,1725297032067,-57.54607277,0.00017576,2]
[336994607,1725297032077,-1241.78721123,0.00017576,2]
[336994608,1725297032087,-2735.46278877,0.00017576,2]
[336994609,1725297032096,-2668.28,0.00017576,2]
[336994610,1725297032105,-222.97,0.00017592,2]
[336994611,1725297032116,-250.0,0.00017638,2]
[336994612,1725297032125,-230.01,0.00017661,2]
[336994613,1725297032137,-405.0,0.00017699,2]
[336994614,1725297032146,-400.0,0.00017701,2]
[336994615,1725297032155,-3651.37,0.00017701,2]
[336994616,1725297032165,-6411.78,0.00017701,2]
[336994617,1725297032174,-1517.42,0.00017701,2]
[336994618,1725297032182,-8237.67,0.00017701,2]
[336994619,1725297032191,-499.99,0.00017701,2]
[336994620,1725297032200,-150.0,0.00017827,2]
[336994621,1725297032210,-255.76,0.00017925,2]
[336994622,1725297032219,-154.23,0.00017926,2]
[336994623,1725297032228,-616.85,0.00017986,2]
[336994624,1725297032237,-600.0,0.000184,2]
[336994625,1725297032246,-173.38,0.00018634,2]
[336994626,1725297032256,-216.30053767,0.00018642,2]
[336994627,1725297032265,-800.0,0.00018652,2]
[336994628,1725297032276,-525.55608059,0.00018652,2]
[336994629,1725297032285,-600.0,0.00018652,2]
[336994630,1725297032295,-427.16,0.00018678,2]
[336994631,1725297032304,-162.54,0.00018678,2]
[336994632,1725297032315,-287.878,0.0001878,2]
[336994633,1725297032325,-587.0,0.00018803,2]
[336994634,1725297032335,-500.0,0.00018873,2]
[336994635,1725297032344,-87885.36938225,0.00018877,2]
[336994636,1725297032353,-1000.0,0.00018878,2]
[336994637,1725297032362,-1160.55428115,0.00018878,2]
[336994638,1725297032374,-966.21666469,0.00018878,2]
[336994639,1725297032385,-373.22905416,0.00018878,2]
[336994640,1725297032394,-368.65204644,0.0001888,2]
[336994641,1725297032406,-5236.44719773,0.0001888,2]
[336994642,1725297032426,-4522.06617273,0.0001888,2]
[336994643,1725297032437,-7384.92556584,0.0001888,2]
[336994644,1725297032448,-2207.62085434,0.0001888,2]
[336994645,1725297032459,-6959.30203298,0.0001888,2]
[336994646,1725297032470,-644.4503927,0.0001888,2]
[336994647,1725297032481,-5373.36897696,0.0001888,2]
[336994648,1725297032496,-9678.66962938,0.0001888,2]
[336994649,1725297032508,-672.3424,0.0001888,2]
[336994652,1725297037934,-14000.0,0.0001888,2]
[336994653,1725297037947,-918.803945,0.0001888,2]
[336994654,1725297037960,-6671.04362498,0.0001888,2]
[336994655,1725297037993,-576.87446552,0.0001888,2]
[336994656,1725297038004,-250.485,0.0001888,2]
[336994657,1725297038050,-86789.59159382,0.0001888,2]
[336994658,1725297038061,-5284.2917,0.00018978,2]
[336994659,1725297038070,-213.8049,0.00018978,2]
[336994660,1725297038079,-613.29729,0.0001899,2]
[336994661,1725297038088,-351.57017114,0.00019068,2]
[336994662,1725297038097,-150.66,0.00019068,2]
[336994663,1725297038107,-827.7852141,0.00019073,2]
[336994664,1725297038116,-166.60662299,0.00019075,2]
[336994665,1725297038125,-500.0,0.00019077,2]
[336994666,1725297038134,-500.0,0.00019077,2]
[336994667,1725297038143,-368.64157672,0.00019077,2]
[336994668,1725297038152,-500.0,0.00019077,2]
[336994669,1725297038161,-437.31596337,0.00019077,2]
[336994670,1725297038170,-500.0,0.00019077,2]
[336994671,1725297038179,-500.0,0.00019077,2]
[336994672,1725297038188,-500.0,0.00019077,2]
[336994673,1725297038371,-500.0,0.00019077,2]
[336994674,1725297038380,-156.4355,0.00019078,2]
[336994676,1725297038390,-3831.8526,0.00019078,2]
[336994678,1725297038399,-100000.0,0.00019078,2]
[336994680,1725297038408,-245000.0,0.00019078,2]
[336994682,1725297038417,-70018.753,0.00019078,2]
[336994684,1725297038427,-12220.6027,0.00019078,2]
[336994686,1725297038436,-7772.9538,0.00019078,2]
[336994688,1725297038446,-1000.0,0.00019078,2]
[336994690,1725297038455,-500.48342975,0.00019173,2]
[336994692,1725297038464,-500.0,0.00019178,2]
[336994694,1725297038474,-500.0,0.00019178,2]
[336994696,1725297038483,-500.0,0.00019178,2]
[336994698,1725297038494,-500.0,0.00019178,2]
[336994700,1725297038503,-500.0,0.00019178,2]
[336994702,1725297038513,-195.65,0.00019178,2]
[336994704,1725297038522,-581.15,0.00019178,2]
[336994706,1725297038532,-500.0,0.00019178,2]
[336994708,1725297038541,-500.0,0.00019178,2]
[336994710,1725297038550,-500.0,0.00019178,2]
[336994712,1725297038560,-500.0,0.00019178,2]
[336994714,1725297038569,-500.0,0.00019178,2]
[336994716,1725297038579,-500.0,0.00019178,2]
[336994718,1725297038588,-500.0,0.00019178,2]
[336994719,1725297038598,-500.0,0.00019178,2]
[336994720,1725297038607,-500.0,0.00019178,2]
[336994721,1725297038616,-500.0,0.00019178,2]
[336994722,1725297038626,-500.0,0.00019178,2]
[336994723,1725297038636,-500.0,0.00019178,2]
[336994724,1725297038645,-500.0,0.00019178,2]
[336994725,1725297038654,-500.0,0.00019178,2]
[336994726,1725297038664,-500.0,0.00019178,2]
[336994727,1725297038673,-500.0,0.00019178,2]
[336994728,1725297038682,-500.0,0.00019178,2]
[336994729,1725297038691,-500.0,0.00019178,2]
[336994730,1725297038700,-500.0,0.00019178,2]
[336994731,1725297038709,-500.0,0.00019178,2]
[336994733,1725297038719,-500.0,0.00019178,2]
[336994734,1725297038728,-500.0,0.00019178,2]
[336994737,1725297038738,-500.0,0.00019178,2]
[336994738,1725297038747,-500.0,0.00019178,2]
[336994740,1725297038756,-370.19,0.00019178,2]
[336994742,1725297038765,-500.0,0.00019178,2]
[336994744,1725297038774,-500.0,0.00019178,2]
[336994746,1725297038782,-500.0,0.00019178,2]
[336994748,1725297038791,-500.0,0.00019178,2]
[336994750,1725297038800,-500.0,0.00019178,2]
[336994752,1725297038810,-500.0,0.00019178,2]
[336994754,1725297038819,-500.0,0.00019178,2]
[336994756,1725297038829,-500.0,0.00019178,2]
[336994758,1725297038838,-500.0,0.00019178,2]
[336994760,1725297038847,-500.0,0.00019178,2]
[336994762,1725297038856,-500.0,0.00019178,2]
[336994764,1725297038865,-500.0,0.00019178,2]
[336994766,1725297038874,-500.0,0.00019178,2]
[336994768,1725297038883,-500.0,0.00019178,2]
[336994770,1725297038892,-500.0,0.00019178,2]
[336994772,1725297038901,-500.0,0.00019178,2]
[336994774,1725297038911,-500.0,0.00019178,2]
[336994776,1725297038920,-500.0,0.00019178,2]
[336994778,1725297038929,-500.0,0.00019178,2]
[336994780,1725297038938,-365.9,0.00019178,2]
[336994781,1725297038948,-500.0,0.00019178,2]
[336994783,1725297038961,-500.0,0.00019178,2]
[336994785,1725297038970,-500.0,0.00019178,2]
[336994786,1725297038980,-500.0,0.00019178,2]
[336994787,1725297038989,-500.0,0.00019178,2]
[336994788,1725297039001,-500.0,0.00019178,2]
[336994789,1725297039010,-500.0,0.00019178,2]
[336994790,1725297039019,-500.0,0.00019178,2]
[336994791,1725297039028,-500.0,0.00019178,2]
[336994792,1725297039039,-500.0,0.00019178,2]
[336994793,1725297039049,-500.0,0.00019178,2]